fUSD/lending_fUSD_20240714
["ID","MTS","AMOUNT","RATE_DAILY","PERIOD"]
[332046836,1720942278337,-1823.32,0.00013863,2]
[332046837,1720942278346,-524.76,0.00013863,2]
[332046838,1720942278356,-825.21,0.00013863,2]
[332046839,1720942278365,-545.0,0.00013863,2]
[332046840,1720942278374,-500.0,0.00013863,2]
[332046841,1720942278384,-649.05,0.00013863,2]
[332046842,1720942278393,-1103.01,0.00013863,2]
[332046843,1720942278403,-630.87,0.00013863,2]
[332046844,1720942278412,-1526.18,0.00013863,2]
[332046845,1720942278422,-576.17,0.00013863,2]
[332046846,1720942278433,-500.0,0.00013863,2]
[332046847,1720942278442,-500.0,0.00013863,2]
[332046848,1720942278452,-633.98,0.00013863,2]
[332046849,1720942278461,-1073.62,0.00013863,2]
[332046850,1720942278471,-591.18,0.00013863,2]
[332046851,1720942278480,-541.87,0.00013863,2]
[332046852,1720942278489,-1702.2,0.00013863,2]
[332046853,1720942278500,-1266.32,0.00013863,2]
[332046854,1720942278509,-702.0,0.00013863,2]
[332046855,1720942278518,-524.39,0.00013863,2]
[332046856,1720942278528,-500.0,0.00013863,2]
[332046857,1720942278537,-547.05,0.00013863,2]
[332046858,1720942278547,-500.0,0.00013863,2]
[332046859,1720942278557,-295.945755,0.00013863,2]
[332046860,1720942278566,-500.0,0.00013863,2]
[332046861,1720942278576,-982.43,0.00013863,2]
[332046862,1720942278585,-1368.37,0.00013863,2]
[332046863,1720942278595,-500.0,0.00013863,2]
[332046864,1720942278604,-500.0,0.00013863,2]
[332046865,1720942278614,-500.0,0.00013863,2]
[332046866,1720942278624,-878.2,0.00013863,2]
[332046867,1720942278634,-300.48079347,0.00013863,2]
[332046868,1720942278643,-500.0,0.00013863,2]
[332046869,1720942278651,-151.0,0.00013863,2]
[332046870,1720942278660,-500.0,0.00013863,2]
[332046871,1720942278670,-521.67,0.00013863,2]
[332046872,1720942278680,-500.0,0.00013863,2]
[332046873,1720942278689,-1416.36,0.00013863,2]
[332046874,1720942278699,-927.78,0.00013863,2]
[332046875,1720942278709,-500.0,0.00013863,2]
[332046876,1720942278718,-500.0,0.00013863,2]
[332046877,1720942278728,-500.0,0.00013863,2]
[332046878,1720942278737,-500.0,0.00013863,2]
[332046879,1720942278747,-868.58,0.00013863,2]
[332046880,1720942278757,-3257.09,0.00013863,2]
[332046881,1720942278766,-500.0,0.00013863,2]
[332046882,1720942278775,-500.0,0.00013863,2]
[332046883,1720942278784,-500.0,0.00013863,2]
[332046884,1720942278794,-500.0,0.00013863,2]
[332046885,1720942278803,-500.0,0.00013863,2]
[332046886,1720942278813,-500.0,0.00013863,2]
[332046887,1720942278823,-759.25,0.00013863,2]
[332046888,1720942278832,-500.0,0.00013863,2]
[332046889,1720942278842,-1159.67,0.00013863,2]
[332046890,1720942278852,-500.0,0.00013863,2]
[332046891,1720942278862,-500.0,0.00013863,2]
[332046892,1720942278871,-1177.72,0.00013863,2]
[332046893,1720942278881,-500.0,0.00013863,2]
[332046894,1720942278891,-500.0,0.00013863,2]
[332046895,1720942278900,-2483.26,0.00013863,2]
[332046896,1720942278910,-500.0,0.00013863,2]
[332046897,1720942278920,-500.0,0.00013863,2]
[332046898,1720942278929,-1063.23,0.00013863,2]
[332046899,1720942278939,-500.0,0.00013863,2]
[332046900,1720942278948,-926.17,0.00013863,2]
[332046901,1720942278957,-500.0,0.00013863,2]
[332046902,1720942278967,-1974.25,0.00013863,2]
[332046903,1720942278977,-763.24,0.00013863,2]
[332046904,1720942278987,-500.0,0.00013863,2]
[332046905,1720942278997,-500.0,0.00013863,2]
[332046906,1720942279009,-985.59,0.00013863,2]
[332046907,1720942279022,-151.0,0.00013863,2]
[332046908,1720942279032,-500.0,0.00013863,2]
[332046909,1720942279042,-500.0,0.00013863,2]
[332046910,1720942279051,-772.6,0.00013863,2]
[332046911,1720942279062,-2774.12,0.00013863,2]
[332046912,1720942279071,-594.69,0.00013863,2]
[332046913,1720942279080,-500.0,0.00013863,2]
[332046914,1720942279091,-1591.5,0.00013863,2]
[332046915,1720942279101,-500.0,0.00013863,2]
[332046916,1720942279111,-500.0,0.00013863,2]
[332046917,1720942279121,-500.0,0.00013863,2]
[332046918,1720942279130,-500.0,0.00013863,2]
[332046919,1720942279139,-500.0,0.00013863,2]
[332046920,1720942279148,-564.58,0.00013863,2]
[332046921,1720942279158,-500.0,0.00013863,2]
[332046922,1720942279167,-706.32,0.00013863,2]
[332046923,1720942279177,-500.0,0.00013863,2]
[332046924,1720942279186,-1001.83,0.00013863,2]
[332046925,1720942279196,-500.0,0.00013863,2]
[332046926,1720942279205,-500.0,0.00013863,2]
[332046927,1720942279214,-1137.97,0.00013863,2]
[332046928,1720942279224,-1304.32,0.00013863,2]
[332046929,1720942279233,-500.0,0.00013863,2]
[332046930,1720942279242,-500.0,0.00013863,2]
[332046931,1720942279252,-844.95,0.00013863,2]
[332046932,1720942279263,-151.0,0.00013863,2]
[332046933,1720942279272,-716.3,0.00013863,2]
[332046934,1720942279282,-500.0,0.00013863,2]
[332046935,1720942279291,-2781.05,0.00013863,2]
[332046936,1720942279301,-500.0,0.00013863,2]
[332046937,1720942279310,-500.0,0.00013863,2]
[332046938,1720942279320,-151.0,0.00013863,2]
[332046939,1720942279330,-500.0,0.00013863,2]
[332046940,1720942279340,-500.0,0.00013863,2]
[332046941,1720942279350,-500.0,0.00013863,2]
[332046942,1720942279360,-151.0,0.00013863,2]
[332046943,1720942279370,-500.0,0.00013863,2]
[332046944,1720942279380,-782.27,0.00013863,2]
[332046945,1720942279389,-1038.87,0.00013863,2]
[332046946,1720942279399,-209.9919,0.00013863,2]
[332046947,1720942279409,-546.01,0.00013863,2]
[332046948,1720942279418,-9706.57,0.00013863,2]
[332046949,1720942279428,-500.0,0.00013863,2]
[332046950,1720942279437,-500.0,0.00013863,2]
[332046951,1720942279447,-500.0,0.00013863,2]
[332046952,1720942279456,-151.0,0.00013863,2]
[332046953,1720942279466,-500.0,0.00013863,2]
[332046954,1720942279476,-500.0,0.00013863,2]
[332046955,1720942279485,-1641.41,0.00013863,2]
[332046956,1720942279494,-891.03,0.00013863,2]
[332046957,1720942279507,-189.61122146,0.00013863,2]
[332046958,1720942279516,-1089.23,0.00013863,2]
[332046959,1720942279526,-151.0,0.00013863,2]
[332046960,1720942279539,-991.84,0.00013863,2]
[332046961,1720942279548,-567.63,0.00013863,2]
[332046962,1720942279558,-500.0,0.00013863,2]
[332046963,1720942279567,-500.0,0.00013863,2]
[332046964,1720942279576,-396.0,0.00013863,2]
[332046965,1720942279586,-911.79042944,0.00013863,2]
[332046966,1720942279595,-58145.08215175,0.00013866,2]
[332046967,1720942279605,-237975.32478663,0.0001388,2]
[332046968,1720942279615,-151.0,0.0001388,2]
[332046969,1720942279624,-151.0,0.0001388,2]
[332046970,1720942279633,-151.0,0.0001388,2]
[332046971,1720942279643,-151.0,0.0001388,2]
[332046972,1720942279653,-151.0,0.0001388,2]
[332046973,1720942279663,-151.0,0.0001388,2]
[332046974,1720942279672,-150.0,0.000139,2]
[332046975,1720942279681,-3469.92217098,0.000139,3]
[332046976,1720942279691,-180.98304596,0.000139,2]
[332046977,1720942279700,-151.0,0.000139,2]
[332046978,1720942279710,-151.0,0.000139,2]
[332046979,1720942279719,-151.0,0.000139,2]
[332046980,1720942279728,-58145.08215175,0.000139,2]
[332046981,1720942279738,-220.930603,0.000139,2]
[332046982,1720942279747,-220.930603,0.000139,2]
[332046983,1720942279758,-3490.6876063,0.000139,2]
[332046984,1720942279767,-167.65881715,0.000139,2]
[332046985,1720942279777,-173.9653522,0.000139,2]
[332046986,1720942279787,-235.73420785,0.000139,2]
[332046987,1720942279797,-385.6,0.000139,2]
[332046988,1720942279807,-323.17746412,0.000139,2]
[332046989,1720942279817,-500.0,0.00013916,2]
[332046990,1720942279827,-500.0,0.00013916,2]
[332046991,1720942279836,-400.0,0.00013916,2]
[332046992,1720942279846,-225.898191,0.00013916,2]
[332046993,1720942279855,-500.0,0.00013917,2]
[332046994,1720942279865,-500.0,0.00013917,2]
[332046995,1720942279875,-769.98,0.00013917,2]
[332046996,1720942279885,-845.84,0.00013917,2]
[332046997,1720942279895,-500.0,0.00013917,2]
[332046998,1720942279905,-772.81,0.00013917,2]
[332046999,1720942279915,-714.84,0.00013917,2]
[332047000,1720942279924,-596.58,0.00013917,2]
[332047001,1720942279934,-592.00316629,0.00013917,2]
[332047002,1720942279943,-663.65,0.00013917,2]
[332047003,1720942279954,-500.0,0.00013917,2]
[332047004,1720942279964,-500.0,0.00013917,2]
[332047005,1720942279973,-1078.34,0.00013917,2]
[332047006,1720942279983,-500.0,0.00013917,2]
[332047007,1720942279993,-500.0,0.00013917,2]
[332047008,1720942280004,-500.0,0.00013917,2]
[332047009,1720942280014,-896.8,0.00013917,2]
[332047010,1720942280028,-500.0,0.00013917,2]
[332047011,1720942280038,-756.47,0.00013917,2]
[332047012,1720942280048,-1107.32,0.00013917,2]
[332047013,1720942280059,-634.56,0.00013917,2]
[332047014,1720942280070,-500.0,0.00013917,2]
[332047015,1720942280081,-500.0,0.00013917,2]
[332047016,1720942280092,-500.0,0.00013917,2]
[332047017,1720942280104,-635.48,0.00013917,2]
[332047018,1720942280115,-582.24,0.00013917,2]
[332047019,1720942280124,-430.80695428,0.00013917,2]
[332047020,1720942280134,-750.32,0.00013917,2]
[332047021,1720942280144,-500.0,0.00013917,2]
[332047022,1720942280154,-506.81,0.00013917,2]
[332047023,1720942280164,-500.0,0.00013917,2]
[332047024,1720942280174,-802.56,0.00013917,2]
[332047025,1720942280184,-500.0,0.00013917,2]
[332047026,1720942280193,-500.0,0.00013917,2]
[332047027,1720942280203,-500.0,0.00013917,2]
[332047028,1720942280212,-500.0,0.00013917,2]
[332047029,1720942280222,-500.65,0.00013917,2]
[332047030,1720942280231,-500.0,0.00013917,2]
[332047031,1720942280240,-874.76,0.00013917,2]
[332047032,1720942280251,-500.0,0.00013917,2]
[332047033,1720942280261,-575.25,0.00013917,2]
[332047034,1720942280270,-744.79,0.00013917,2]
[332047035,1720942280280,-151.0,0.00013917,2]
[332047036,1720942280289,-151.0,0.00013917,2]
[332047037,1720942280299,-500.0,0.00013917,2]
[332047038,1720942280308,-500.0,0.00013917,2]
[332047039,1720942280318,-500.0,0.00013917,2]
[332047040,1720942280328,-151.0,0.00013917,2]
[332047041,1720942280337,-500.0,0.00013917,2]
[332047042,1720942280347,-579.01,0.00013917,2]
[332047043,1720942280356,-500.0,0.00013917,2]
[332047044,1720942280366,-500.0,0.00013917,2]
[332047045,1720942280375,-791.1,0.00013917,2]
[332047046,1720942280384,-500.0,0.00013917,2]
[332047047,1720942280394,-500.0,0.00013917,2]
[332047048,1720942280404,-500.0,0.00013917,2]
[332047049,1720942280413,-500.0,0.00013917,2]
[332047050,1720942280423,-500.0,0.00013917,2]
[332047051,1720942280432,-500.0,0.00013917,2]
[332047052,1720942280442,-153.838184,0.00013917,2]
[332047053,1720942280451,-1162.27,0.00013917,2]
[332047054,1720942280461,-1473.34,0.00013917,2]
[332047055,1720942280470,-643.73,0.00013917,2]
[332047056,1720942280480,-500.0,0.00013917,2]
[332047057,1720942280490,-500.0,0.00013917,2]
[332047058,1720942280499,-500.0,0.00013917,2]
[332047059,1720942280510,-1110.08,0.00013917,2]
[332047060,1720942280519,-500.0,0.00013917,2]
[332047061,1720942280529,-500.0,0.00013917,2]
[332047062,1720942280540,-562.82,0.00013917,2]
[332047063,1720942280550,-500.0,0.00013917,2]
[332047064,1720942280560,-500.0,0.00013917,2]
[332047065,1720942280570,-500.0,0.00013917,2]
[332047066,1720942280579,-500.0,0.00013917,2]
[332047067,1720942280590,-151.0,0.00013917,2]
[332047068,1720942280600,-500.0,0.00013917,2]
[332047069,1720942280610,-586.7,0.00013917,2]
[332047070,1720942280619,-589.73,0.00013917,2]
[332047071,1720942280628,-813.87,0.00013917,2]
[332047072,1720942280637,-500.0,0.00013917,2]
[332047073,1720942280647,-500.0,0.00013917,2]
[332047074,1720942280657,-500.0,0.00013917,2]
[332047075,1720942280667,-500.0,0.00013917,2]
[332047076,1720942280677,-500.0,0.00013917,2]
[332047077,1720942280688,-500.0,0.00013917,2]
[332047078,1720942280699,-500.0,0.00013917,2]
[332047079,1720942280709,-671.28,0.00013917,2]
[332047080,1720942280720,-500.0,0.00013917,2]
[332047081,1720942280730,-1137.71,0.00013917,2]
[332047082,1720942280740,-483.39834769,0.00013917,2]
[332047083,1720942280752,-500.0,0.00013917,2]
[332047084,1720942280762,-747.56,0.00013917,2]
[332047085,1720942280773,-500.0,0.00013917,2]
[332047086,1720942280784,-500.0,0.00013917,2]
[332047087,1720942280794,-822.42,0.00013917,2]
[332047088,1720942280805,-635.64,0.00013917,2]
[332047089,1720942280815,-218.76940274,0.00013917,2]
[332047090,1720942280825,-500.0,0.00013917,2]
[332047091,1720942280835,-1193.27,0.00013917,2]
[332047092,1720942280844,-500.0,0.00013917,2]
[332047093,1720942280860,-1079.52,0.00013917,2]
[332047094,1720942280870,-500.0,0.00013917,2]
[332047095,1720942280880,-500.0,0.00013917,2]
[332047096,1720942280890,-151.0,0.00013917,2]
[332047097,1720942280900,-500.0,0.00013917,2]
[332047098,1720942280910,-542.08,0.00013917,2]
[332047099,1720942280920,-151.0,0.00013917,2]
[332047100,1720942280930,-500.0,0.00013917,2]
[332047101,1720942280939,-500.0,0.00013917,2]
[332047102,1720942280950,-500.0,0.00013917,2]
[332047103,1720942280959,-213.18,0.00013917,2]
[332047104,1720942280969,-1077.55,0.00013917,2]
[332047105,1720942280979,-964.35,0.00013917,2]
[332047106,1720942280988,-151.0,0.00013917,2]
[332047107,1720942280998,-500.0,0.00013917,2]
[332047108,1720942281008,-500.0,0.00013917,2]
[332047109,1720942281019,-500.0,0.00013917,2]
[332047110,1720942281031,-604.88,0.00013917,2]
[332047111,1720942281041,-2131.66,0.00013917,2]
[332047112,1720942281051,-950.53,0.00013917,2]
[332047113,1720942281061,-500.0,0.00013917,2]
[332047114,1720942281072,-1580.61,0.00013917,2]
[332047115,1720942281081,-642.41,0.00013917,2]
[332047116,1720942281092,-500.0,0.00013917,2]
[332047117,1720942281102,-500.0,0.00013917,2]
[332047118,1720942281112,-500.0,0.00013917,2]
[332047119,1720942281123,-602.55,0.00013917,2]
[332047120,1720942281132,-695.43,0.00013917,2]
[332047121,1720942281142,-1382.1,0.00013917,2]
[332047122,1720942281152,-500.0,0.00013917,2]
[332047123,1720942281161,-505.12292445,0.00013917,2]
[332047124,1720942281172,-500.0,0.00013917,2]
[332047125,1720942281181,-768.25,0.00013917,2]
[332047126,1720942281191,-500.0,0.00013917,2]
[332047127,1720942281201,-500.0,0.00013917,2]
[332047128,1720942281210,-1121.28,0.00013917,2]
[332047129,1720942281220,-870.82,0.00013917,2]
[332047130,1720942281229,-151.0,0.00013917,2]
[332047131,1720942281239,-770.79,0.00013917,2]
[332047132,1720942281249,-500.0,0.00013917,2]
[332047133,1720942281260,-690.16,0.00013917,2]
[332047134,1720942281270,-151.0,0.00013917,2]
[332047135,1720942281280,-942.52,0.00013917,2]
[332047136,1720942281290,-819.36,0.00013917,2]
[332047137,1720942281300,-1183.77,0.00013917,2]
[332047138,1720942281309,-714.85,0.00013917,2]
[332047139,1720942281319,-594.24,0.00013917,2]
[332047140,1720942281328,-500.0,0.00013917,2]
[332047141,1720942281338,-500.0,0.00013917,2]
[332047142,1720942281348,-151.0,0.00013917,2]
[332047143,1720942281357,-1262.53,0.00013917,2]
[332047144,1720942281367,-1030.37636247,0.00013917,2]
[332047145,1720942282059,-162.64363753,0.00013917,2]
[332047146,1720942282069,-500.0,0.00013917,2]
[332047147,1720942282079,-162.500697,0.00013917,2]
[332047148,1720942282522,-500.0,0.00013698,2]
[332047149,1720942282532,-74.42355092,0.00013698,2]
[332047150,1720942282544,-425.57644908,0.00013698,2]
[332047151,1720942282553,-272.02747447,0.00013698,2]
[332047152,1720942282565,-227.97252553,0.00013698,2]
[332047153,1720942282575,-500.0,0.00013698,2]
[332047154,1720942282584,-500.0,0.00013698,2]
[332047155,1720942282594,-500.0,0.00013753,2]
[332047156,1720942282603,-500.0,0.00013753,2]
[332047157,1720942282613,-500.0,0.00013753,2]
[332047158,1720942282623,-500.0,0.00013753,2]
[332047159,1720942282633,-500.0,0.00013808,2]
[332047160,1720942282642,-509.24,0.00013808,2]
[332047161,1720942282652,-498.479303,0.00013917,2]
[332047162,1720942282662,-500.0,0.00013917,2]
[332047163,1720942282671,-500.0,0.00013917,2]
[332047164,1720942282681,-500.0,0.00013917,2]
[332047165,1720942282691,-2306.15,0.00013917,2]
[332047166,1720942282701,-715.02,0.00013917,2]
[332047167,1720942282712,-730.84,0.00013917,2]
[332047168,1720942282723,-500.0,0.00013917,2]
[332047169,1720942282733,-500.0,0.00013917,2]
[332047170,1720942282743,-1612.72,0.00013917,2]
[332047171,1720942282754,-500.0,0.00013917,2]
[332047172,1720942282764,-500.0,0.00013917,2]
[332047173,1720942282775,-1718.95,0.00013917,2]
[332047174,1720942282785,-842.66,0.00013917,2]
[332047175,1720942282795,-151.0,0.00013917,2]
[332047176,1720942282804,-1745.81,0.00013917,2]
[332047177,1720942282814,-1239.42,0.00013917,2]
[332047178,1720942282824,-500.0,0.00013917,2]
[332047179,1720942282834,-500.0,0.00013917,2]
[332047180,1720942282843,-292.842334,0.00013917,2]
[332047181,1720942282853,-201.29,0.00013917,2]
[332047182,1720942282863,-500.0,0.00013917,2]
[332047183,1720942282873,-1550.79,0.00013917,2]
[332047184,1720942282883,-500.0,0.00013917,2]
[332047185,1720942282893,-1218.97,0.00013917,2]
[332047186,1720942282902,-345.131296,0.00013917,2]
[332047187,1720942282912,-500.0,0.00013917,2]
[332047188,1720942282922,-345.131296,0.00013917,2]
[332047189,1720942282931,-500.0,0.00013917,2]
[332047190,1720942282941,-869.73,0.00013917,2]
[332047191,1720942282950,-500.0,0.00013917,2]
[332047192,1720942282960,-1130.31,0.00013917,2]
[332047193,1720942282970,-628.18,0.00013917,2]
[332047194,1720942282980,-500.0,0.00013917,2]
[332047195,1720942282990,-1557.09,0.00013917,2]
[332047196,1720942282999,-500.0,0.00013917,2]
[332047197,1720942283012,-500.33,0.00013917,2]
[332047198,1720942283024,-500.0,0.00013917,2]
[332047199,1720942283042,-603.88507652,0.00013917,2]
[332047200,1720942283052,-846.37,0.00013917,2]
[332047201,1720942283063,-500.0,0.00013917,2]
[332047202,1720942283072,-500.0,0.00013917,2]
[332047203,1720942283082,-2196.01,0.00013917,2]
[332047204,1720942283091,-500.0,0.00013917,2]
[332047205,1720942283104,-500.0,0.00013917,2]
[332047206,1720942283115,-500.0,0.00013917,2]
[332047207,1720942283125,-500.0,0.00013917,2]
[332047208,1720942283134,-947.73,0.00013917,2]
[332047209,1720942283144,-500.0,0.00013917,2]
[332047210,1720942283154,-704.59,0.00013917,2]
[332047211,1720942283163,-650.94,0.00013917,2]
[332047212,1720942283173,-500.0,0.00013917,2]
[332047213,1720942283184,-500.0,0.00013917,2]
[332047214,1720942283193,-500.0,0.00013917,2]
[332047215,1720942283203,-151.0,0.00013917,2]
[332047216,1720942283213,-591.67,0.00013917,2]
[332047217,1720942283222,-500.0,0.00013917,2]
[332047218,1720942283232,-500.0,0.00013917,2]
[332047219,1720942283241,-500.12,0.00013917,2]
[332047220,1720942283251,-1562.18,0.00013917,2]
[332047221,1720942283264,-476.88970014,0.00013917,2]
[332047222,1720942283273,-2244.93,0.00013917,2]
[332047223,1720942283282,-625.0,0.00013917,2]
[332047224,1720942283292,-574.54,0.00013917,2]
[332047225,1720942283302,-500.0,0.00013917,2]
[332047226,1720942283312,-500.0,0.00013917,2]
[332047227,1720942283322,-1359.02,0.00013917,2]
[332047228,1720942283332,-500.0,0.00013917,2]
[332047229,1720942283342,-500.0,0.00013917,2]
[332047230,1720942283351,-500.0,0.00013917,2]
[332047231,1720942283362,-500.0,0.00013917,2]
[332047232,1720942283371,-151.0,0.00013917,2]
[332047233,1720942283382,-813.43,0.00013917,2]
[332047234,1720942283392,-682.17,0.00013917,2]
[332047235,1720942283402,-828.19,0.00013917,2]
[332047236,1720942283412,-1373.71,0.00013917,2]
[332047237,1720942283421,-607.25,0.00013917,2]
[332047238,1720942283431,-707.5,0.00013917,2]
[332047239,1720942283441,-500.0,0.00013917,2]
[332047240,1720942283450,-1024.42,0.00013917,2]
[332047241,1720942283460,-500.0,0.00013917,2]
[332047242,1720942283470,-500.0,0.00013917,2]
[332047243,1720942283479,-500.0,0.00013917,2]
[332047244,1720942283489,-500.0,0.00013917,2]
[332047245,1720942283499,-789.23,0.00013917,2]
[332047246,1720942283510,-266.45794297,0.00013917,2]
[332047247,1720942283521,-151.0,0.00013917,2]
[332047248,1720942283530,-500.0,0.00013917,2]
[332047249,1720942283540,-565.93,0.00013917,2]
[332047250,1720942283550,-805.03,0.00013917,2]
[332047251,1720942283559,-578.63,0.00013917,2]
[332047252,1720942283569,-1277.4,0.00013917,2]
[332047253,1720942283579,-763.16,0.00013917,2]
[332047254,1720942283589,-1223.49,0.00013917,2]
[332047255,1720942283599,-997.24,0.00013917,2]
[332047256,1720942283608,-1223.05,0.00013917,2]
[332047257,1720942283618,-693.59,0.00013917,2]
[332047258,1720942283628,-500.0,0.00013917,2]
[332047259,1720942283637,-686.17,0.00013917,2]
[332047260,1720942283647,-1084.92,0.00013917,2]
[332047261,1720942283657,-880.57,0.00013917,2]
[332047262,1720942283666,-1246.78,0.00013917,2]
[332047263,1720942283676,-252.50680154,0.00013917,2]
[332047264,1720942283686,-517.28,0.00013917,2]
[332047265,1720942283695,-573.84,0.00013917,2]
[332047266,1720942283705,-1357.43,0.00013917,2]
[332047267,1720942283715,-500.0,0.00013917,2]
[332047268,1720942283724,-500.0,0.00013917,2]
[332047269,1720942283734,-654.56,0.00013917,2]
[332047270,1720942283743,-500.0,0.00013917,2]
[332047271,1720942283753,-500.0,0.00013917,2]
[332047272,1720942283764,-1144.62,0.00013917,2]
[332047273,1720942283774,-500.0,0.00013917,2]
[332047274,1720942283783,-500.0,0.00013917,2]
[332047275,1720942283793,-1255.22,0.00013917,2]
[332047276,1720942283802,-500.0,0.00013917,2]
[332047277,1720942283811,-1662.21,0.00013917,2]
[332047278,1720942283821,-500.0,0.00013917,2]
[332047279,1720942283830,-500.0,0.00013917,2]
[332047280,1720942283840,-500.0,0.00013917,2]
[332047281,1720942283850,-500.0,0.00013917,2]
[332047282,1720942283859,-151.0,0.00013917,2]
[332047283,1720942283868,-1657.58,0.00013917,2]
[332047284,1720942283878,-500.0,0.00013917,2]
[332047285,1720942283888,-1018.78,0.00013917,2]
[332047286,1720942283898,-500.0,0.00013917,2]
[332047287,1720942283907,-2326.8,0.00013917,2]
[332047288,1720942283917,-1745.09,0.00013917,2]
[332047289,1720942283926,-786.63,0.00013917,2]
[332047290,1720942283936,-500.0,0.00013917,2]
[332047291,1720942283945,-1039.56,0.00013917,2]
[332047292,1720942283955,-500.0,0.00013917,2]
[332047293,1720942283965,-1675.85,0.00013917,2]
[332047294,1720942283974,-611.27,0.00013917,2]
[332047295,1720942283984,-1222.98,0.00013917,2]
[332047296,1720942283993,-500.0,0.00013917,2]
[332047297,1720942284003,-862.3,0.00013917,2]
[332047298,1720942284014,-151.0,0.00013917,2]
[332047299,1720942284028,-708.13,0.00013917,2]
[332047300,1720942284038,-500.0,0.00013917,2]
[332047301,1720942284047,-151.0,0.00013917,2]
[332047302,1720942284057,-539.51,0.00013917,2]
[332047303,1720942284068,-500.0,0.00013917,2]
[332047304,1720942284077,-500.0,0.00013917,2]
[332047305,1720942284087,-594.42,0.00013917,2]
[332047306,1720942284098,-500.0,0.00013917,2]
[332047307,1720942284171,-1167.02,0.00013917,2]
[332047308,1720942284181,-629.91,0.00013917,2]
[332047309,1720942284191,-606.95,0.00013917,2]
[332047310,1720942284201,-151.0,0.00013917,2]
[332047311,1720942284212,-1350.7,0.00013917,2]
[332047312,1720942284221,-699.01,0.00013917,2]
[332047313,1720942284231,-500.0,0.00013917,2]
[332047314,1720942284241,-500.0,0.00013917,2]
[332047315,1720942284250,-569.64,0.00013917,2]
[332047316,1720942284262,-151.0,0.00013917,2]
[332047317,1720942284272,-616.95,0.00013917,2]
[332047318,1720942284282,-500.0,0.00013917,2]
[332047319,1720942284292,-858.57,0.00013917,2]
[332047320,1720942284301,-500.0,0.00013917,2]
[332047321,1720942284311,-1377.67,0.00013917,2]
[332047322,1720942284319,-500.0,0.00013917,2]
[332047323,1720942284328,-500.0,0.00013917,2]
[332047324,1720942284337,-500.0,0.00013917,2]
[332047325,1720942284347,-541.42,0.00013917,2]
[332047326,1720942284357,-500.0,0.00013917,2]
[332047327,1720942284367,-940.75,0.00013917,2]
[332047328,1720942284377,-500.0,0.00013917,2]
[332047329,1720942284388,-500.0,0.00013917,2]
[332047330,1720942284397,-1064.23,0.00013917,2]
[332047331,1720942284407,-500.0,0.00013917,2]
[332047332,1720942284416,-643.31,0.00013917,2]
[332047333,1720942284425,-1900.55,0.00013917,2]
[332047334,1720942284435,-151.0,0.00013917,2]
[332047335,1720942284444,-1877.29,0.00013917,2]